[Event "Early-Titled-Tuesday-Blitz-May-07-2024"]
[Site "Chess.com"]
[Date "2024.05.07"]
[Round "1"]
[White "crosky"]
[Black "SirStrateg"]
[Result "0-1"]
[WhiteElo "2376"]
[BlackElo "2671"]
[TimeControl "180+1"]
[EndTime "8:04:40 PDT"]
[Termination "SirStrateg won by resignation"]

1. d4 {[%clk 0:02:56.6]} 1... d6 {[%clk 0:03:00.4]} 2. e4 {[%clk 0:02:50.3]}
2... Nf6 {[%clk 0:03:00.5]} 3. Nc3 {[%clk 0:02:51]} 3... c6 {[%clk 0:03:01.1]}
4. g3 {[%clk 0:02:50.7]} 4... e5 {[%clk 0:03:00.5]} 5. Nge2 {[%clk 0:02:49.9]}
5... Be7 {[%clk 0:03:00.5]} 6. Bg2 {[%clk 0:02:49.9]} 6... Nbd7 {[%clk
0:02:58.1]} 7. O-O {[%clk 0:02:50.3]} 7... b5 {[%clk 0:02:58.6]} 8. a3 {[%clk
0:02:49.9]} 8... O-O {[%clk 0:02:57.9]} 9. h3 {[%clk 0:02:48.4]} 9... a5 {[%clk
0:02:56.3]} 10. Be3 {[%clk 0:02:47.4]} 10... Bb7 {[%clk 0:02:54.7]} 11. d5
{[%clk 0:02:41]} 11... cxd5 {[%clk 0:02:51.9]} 12. Nxd5 {[%clk 0:02:28.4]} 12...
Nxd5 {[%clk 0:02:43.2]} 13. exd5 {[%clk 0:02:29.3]} 13... Nb6 {[%clk 0:02:36.2]}
14. f4 {[%clk 0:02:28]} 14... Nc4 {[%clk 0:02:34.7]} 15. Bc1 {[%clk 0:02:06.4]}
15... Qb6+ {[%clk 0:02:31.2]} 16. Kh1 {[%clk 0:02:06.9]} 16... Ne3 {[%clk
0:02:27.8]} 17. Bxe3 {[%clk 0:02:06.8]} 17... Qxe3 {[%clk 0:02:28.2]} 18. Rf3
{[%clk 0:01:54.2]} 18... Qc5 {[%clk 0:02:19.2]} 19. Rd3 {[%clk 0:01:47.4]} 19...
Bf6 {[%clk 0:02:07.8]} 20. f5 {[%clk 0:01:10.3]} 20... b4 {[%clk 0:01:54]} 21.
g4 {[%clk 0:01:07]} 21... e4 {[%clk 0:01:51]} 22. Bxe4 {[%clk 0:01:05.9]} 22...
Bxb2 {[%clk 0:01:51.2]} 23. axb4 {[%clk 0:01:03.8]} 23... axb4 {[%clk
0:01:48.1]} 24. Rxa8 {[%clk 0:01:01.4]} 24... Rxa8 {[%clk 0:01:49]} 25. Nf4
{[%clk 0:00:38.2]} 25... Ra1 {[%clk 0:01:46.8]} 0-1

[Event "Early-Titled-Tuesday-Blitz-May-07-2024"]
[Site "Chess.com"]
[Date "2024.05.07"]
[Round "1"]
[White "arnash_bauyrzhan"]
[Black "andriipalchuk"]
[Result "0-1"]
[WhiteElo "2303"]
[BlackElo "2620"]
[TimeControl "180+1"]
[EndTime "8:04:40 PDT"]
[Termination "andriipalchuk won on time"]

1. e4 {[%clk 0:02:58.8]} 1... c6 {[%clk 0:02:58]} 2. d4 {[%clk 0:02:58.2]} 2...
d5 {[%clk 0:02:58.4]} 3. exd5 {[%clk 0:02:57]} 3... cxd5 {[%clk 0:02:58.6]} 4.
Bd3 {[%clk 0:02:56.5]} 4... Nc6 {[%clk 0:02:58.7]} 5. c3 {[%clk 0:02:56.7]} 5...
Nf6 {[%clk 0:02:58.5]} 6. Nf3 {[%clk 0:02:56.1]} 6... Bg4 {[%clk 0:02:58.7]} 7.
O-O {[%clk 0:02:55.1]} 7... e6 {[%clk 0:02:59.1]} 8. h3 {[%clk 0:02:55.1]} 8...
Bh5 {[%clk 0:02:59.2]} 9. Bf4 {[%clk 0:02:51.9]} 9... Bd6 {[%clk 0:02:58.5]} 10.
Bxd6 {[%clk 0:02:40.7]} 10... Qxd6 {[%clk 0:02:59.4]} 11. Nbd2 {[%clk
0:02:40.7]} 11... O-O {[%clk 0:02:59.1]} 12. a4 {[%clk 0:02:36.5]} 12... b6
{[%clk 0:02:53.7]} 13. Re1 {[%clk 0:02:28.1]} 13... Rfe8 {[%clk 0:02:52.3]} 14.
Qb3 {[%clk 0:02:27.9]} 14... Nd7 {[%clk 0:02:41.2]} 15. Bb5 {[%clk 0:02:01.6]}
15... f6 {[%clk 0:02:32.4]} 16. Bxc6 {[%clk 0:01:38.2]} 16... Qxc6 {[%clk
0:02:31.9]} 17. Qb5 {[%clk 0:01:25.4]} 17... Qb7 {[%clk 0:02:25.3]} 18. Re3
{[%clk 0:01:20.1]} 18... a6 {[%clk 0:02:22.3]} 19. Qb3 {[%clk 0:00:54.5]} 19...
e5 {[%clk 0:02:16.2]} 0-1

[Event "Early-Titled-Tuesday-Blitz-May-07-2024"]
[Site "Chess.com"]
[Date "2024.05.07"]
[Round "1"]
[White "JiiHart"]
[Black "WindWhistler11"]
[Result "0-1"]
[WhiteElo "2153"]
[BlackElo "2571"]
[TimeControl "180+1"]
[EndTime "8:04:42 PDT"]
[Termination "WindWhistler11 won by resignation"]

1. e4 {[%clk 0:02:59.7]} 1... e6 {[%clk 0:02:59.7]} 2. d4 {[%clk 0:02:59.3]}
2... d5 {[%clk 0:03:00.3]} 3. Nd2 {[%clk 0:02:59.1]} 3... Nc6 {[%clk 0:02:57]}
4. Ngf3 {[%clk 0:02:58.4]} 4... Nf6 {[%clk 0:02:57.2]} 5. Bd3 {[%clk 0:02:57.5]}
5... Nb4 {[%clk 0:02:54]} 6. O-O {[%clk 0:02:39]} 6... Nxd3 {[%clk 0:02:53.1]}
7. cxd3 {[%clk 0:02:39.2]} 7... Be7 {[%clk 0:02:53.7]} 8. Re1 {[%clk 0:02:34.6]}
8... O-O {[%clk 0:02:53.1]} 9. Nf1 {[%clk 0:02:33.4]} 9... b6 {[%clk 0:02:47.9]}
10. Ng3 {[%clk 0:02:32.8]} 10... Ba6 {[%clk 0:02:44.4]} 11. h4 {[%clk
0:02:13.9]} 11... Rc8 {[%clk 0:02:39]} 12. Bg5 {[%clk 0:02:10]} 12... h6 {[%clk
0:02:32.3]} 13. Bf4 {[%clk 0:01:59]} 13... c5 {[%clk 0:02:27]} 14. Qd2 {[%clk
0:01:53.8]} 14... cxd4 {[%clk 0:02:17.9]} 15. Nxd4 {[%clk 0:01:32.3]} 15... dxe4
{[%clk 0:02:06.2]} 16. dxe4 {[%clk 0:01:31.5]} 16... Rc4 {[%clk 0:02:06.7]} 17.
Rad1 {[%clk 0:01:27.8]} 17... Bb4 {[%clk 0:02:05.9]} 18. Nxe6 {[%clk 0:01:13.6]}
18... Bxd2 {[%clk 0:01:57.5]} 19. Nxd8 {[%clk 0:01:11.2]} 19... Bxe1 {[%clk
0:01:57.2]} 20. b3 {[%clk 0:00:43.8]} 20... Rc8 {[%clk 0:01:51.3]} 21. Rxe1
{[%clk 0:00:39.3]} 21... Rcxd8 {[%clk 0:01:41.1]} 0-1

[Event "Early-Titled-Tuesday-Blitz-May-07-2024"]
[Site "Chess.com"]
[Date "2024.05.07"]
[Round "1"]
[White "banane_verte"]
[Black "Bwert2602"]
[Result "1-0"]
[WhiteElo "2603"]
[BlackElo "2256"]
[TimeControl "180+1"]
[EndTime "8:04:44 PDT"]
[Termination "banane_verte won by resignation"]

1. d4 {[%clk 0:02:59.8]} 1... Nf6 {[%clk 0:02:54.5]} 2. c4 {[%clk 0:02:59.8]}
2... e6 {[%clk 0:02:53.5]} 3. Nc3 {[%clk 0:02:58.8]} 3... c5 {[%clk 0:02:53.5]}
4. d5 {[%clk 0:02:58.5]} 4... exd5 {[%clk 0:02:52.4]} 5. cxd5 {[%clk 0:02:59.4]}
5... Bd6 {[%clk 0:02:51.6]} 6. e4 {[%clk 0:02:58.6]} 6... O-O {[%clk 0:02:49.4]}
7. f4 {[%clk 0:02:52.8]} 7... Nxe4 {[%clk 0:02:45.2]} 8. Nxe4 {[%clk 0:02:47.6]}
8... Re8 {[%clk 0:02:45.2]} 9. Bd3 {[%clk 0:02:47.5]} 9... f5 {[%clk 0:02:44.8]}
10. Nh3 {[%clk 0:02:31.9]} 10... fxe4 {[%clk 0:02:39.1]} 11. Bc4 {[%clk
0:02:32.2]} 11... Qh4+ {[%clk 0:02:31.7]} 12. Kf1 {[%clk 0:02:24.3]} 12... e3
{[%clk 0:02:16]} 13. Qf3 {[%clk 0:02:20.1]} 13... a6 {[%clk 0:01:45.2]} 14. a4
{[%clk 0:02:17.5]} 14... b5 {[%clk 0:01:44.6]} 15. axb5 {[%clk 0:02:17.5]} 15...
axb5 {[%clk 0:01:45.5]} 16. Rxa8 {[%clk 0:02:14.5]} 16... bxc4 {[%clk
0:01:45.1]} 17. Bxe3 {[%clk 0:02:11.4]} 17... Ba6 {[%clk 0:01:42.9]} 18. Bf2
{[%clk 0:01:39.5]} 18... Qf6 {[%clk 0:01:18.5]} 19. g3 {[%clk 0:01:38.2]} 19...
c3+ {[%clk 0:01:04.2]} 20. Rxa6 {[%clk 0:01:37.8]} 20... c2 {[%clk 0:00:54.9]}
21. Ra1 {[%clk 0:01:33.4]} 21... Qxb2 {[%clk 0:00:46.5]} 22. Kg2 {[%clk
0:01:33.7]} 1-0

[Event "Early-Titled-Tuesday-Blitz-May-07-2024"]
[Site "Chess.com"]
[Date "2024.05.07"]
[Round "1"]
[White "manitodeplomo"]
[Black "Supergiuly"]
[Result "1-0"]
[WhiteElo "2632"]
[BlackElo "2336"]
[TimeControl "180+1"]
[EndTime "8:04:46 PDT"]
[Termination "manitodeplomo won by resignation"]

1. d4 {[%clk 0:02:47.9]} 1... e6 {[%clk 0:02:50.9]} 2. c4 {[%clk 0:02:46.7]}
2... g6 {[%clk 0:02:49.2]} 3. Nc3 {[%clk 0:02:44.4]} 3... Bg7 {[%clk 0:02:49.4]}
4. Nf3 {[%clk 0:02:41.8]} 4... Ne7 {[%clk 0:02:47.8]} 5. e3 {[%clk 0:02:32.9]}
5... O-O {[%clk 0:02:46.1]} 6. Be2 {[%clk 0:02:32.3]} 6... c5 {[%clk 0:02:44.4]}
7. O-O {[%clk 0:02:28.4]} 7... b6 {[%clk 0:02:41]} 8. d5 {[%clk 0:02:26.3]} 8...
Bb7 {[%clk 0:02:35]} 9. e4 {[%clk 0:02:24.3]} 9... exd5 {[%clk 0:02:29.7]} 10.
cxd5 {[%clk 0:02:21.7]} 10... d6 {[%clk 0:02:30.6]} 11. Bf4 {[%clk 0:02:14.3]}
11... f5 {[%clk 0:02:17.9]} 12. e5 {[%clk 0:02:09.2]} 12... dxe5 {[%clk
0:02:17.3]} 13. Bxe5 {[%clk 0:02:05.5]} 13... Bxe5 {[%clk 0:02:13.4]} 14. Nxe5
{[%clk 0:02:05.1]} 14... Nxd5 {[%clk 0:02:12.5]} 15. Bc4 {[%clk 0:02:03]} 15...
Qe7 {[%clk 0:01:56.6]} 16. Bxd5+ {[%clk 0:01:57.9]} 16... Bxd5 {[%clk 0:01:56]}
17. Qxd5+ {[%clk 0:01:56.7]} 17... Kh8 {[%clk 0:01:56]} 18. Qxa8 {[%clk
0:01:55.8]} 18... Qxe5 {[%clk 0:01:55.8]} 19. Qd5 {[%clk 0:01:53.3]} 19... Qe7
{[%clk 0:01:55]} 20. Rfe1 {[%clk 0:01:51.4]} 20... Qc7 {[%clk 0:01:54.6]} 21.
Nb5 {[%clk 0:01:40.2]} 21... Qf4 {[%clk 0:01:51]} 22. Qe5+ {[%clk 0:01:27.8]}
22... Qxe5 {[%clk 0:01:48.9]} 23. Rxe5 {[%clk 0:01:28.7]} 23... Nc6 {[%clk
0:01:49]} 24. Re6 {[%clk 0:01:25.4]} 24... Nb4 {[%clk 0:01:48.4]} 25. a3 {[%clk
0:01:20.1]} 25... Nd3 {[%clk 0:01:47.7]} 26. Nxa7 {[%clk 0:01:13.3]} 26... Nxb2
{[%clk 0:01:45.1]} 27. Rxb6 {[%clk 0:01:13]} 27... Nc4 {[%clk 0:01:45.2]} 28.
Rc6 {[%clk 0:01:11.5]} 28... Ra8 {[%clk 0:01:37.9]} 29. Rxc5 {[%clk 0:00:58.2]}
29... Nd2 {[%clk 0:01:36]} 30. Rc8+ {[%clk 0:00:56]} 1-0

[Event "Early-Titled-Tuesday-Blitz-May-07-2024"]
[Site "Chess.com"]
[Date "2024.05.07"]
[Round "1"]
[White "Kotofeyca"]
[Black "kleinebeer98"]
[Result "0-1"]
[WhiteElo "2507"]
[BlackElo "2920"]
[TimeControl "180+1"]
[EndTime "8:04:49 PDT"]
[Termination "kleinebeer98 won by checkmate"]

1. d4 {[%clk 0:03:00.9]} 1... Nf6 {[%clk 0:02:57.8]} 2. c4 {[%clk 0:03:00]} 2...
a6 {[%clk 0:02:58.4]} 3. Nc3 {[%clk 0:02:58.6]} 3... b5 {[%clk 0:02:59]} 4. cxb5
{[%clk 0:02:56.6]} 4... axb5 {[%clk 0:02:59.9]} 5. Nxb5 {[%clk 0:02:55.2]} 5...
e5 {[%clk 0:03:00.6]} 6. dxe5 {[%clk 0:02:44.9]} 6... Ne4 {[%clk 0:03:01.3]} 7.
Nc3 {[%clk 0:02:33.4]} 7... Bb4 {[%clk 0:03:01]} 8. Qc2 {[%clk 0:02:00.9]} 8...
d5 {[%clk 0:03:00.2]} 9. e3 {[%clk 0:01:41]} 9... Bf5 {[%clk 0:02:43.9]} 10. Bd3
{[%clk 0:01:40.6]} 10... Nd7 {[%clk 0:02:42.4]} 11. Ne2 {[%clk 0:01:08.8]} 11...
Nxe5 {[%clk 0:02:41.8]} 12. O-O {[%clk 0:00:55.6]} 12... Nxd3 {[%clk 0:02:41]}
13. Qxd3 {[%clk 0:00:55.9]} 13... Nxc3 {[%clk 0:02:41.7]} 14. Qxf5 {[%clk
0:00:43.8]} 14... Nxe2+ {[%clk 0:02:42.2]} 15. Kh1 {[%clk 0:00:44.3]} 15... O-O
{[%clk 0:02:41.4]} 16. Rd1 {[%clk 0:00:30.7]} 16... Nxc1 {[%clk 0:02:37.4]} 17.
Rxd5 {[%clk 0:00:25.2]} 17... Bd6 {[%clk 0:02:30.4]} 18. Rxc1 {[%clk 0:00:24.2]}
18... Rxa2 {[%clk 0:02:31]} 19. Qc2 {[%clk 0:00:14.5]} 19... Qf6 {[%clk
0:02:29.1]} 20. Rb5 {[%clk 0:00:12]} 20... g6 {[%clk 0:02:26.6]} 21. Kg1 {[%clk
0:00:11.5]} 21... Rfa8 {[%clk 0:02:25.9]} 22. g3 {[%clk 0:00:11.2]} 22... Ra1
{[%clk 0:02:26.4]} 23. Kg2 {[%clk 0:00:10.3]} 23... Rxc1 {[%clk 0:02:25.6]} 24.
Qxc1 {[%clk 0:00:11.2]} 24... Qe6 {[%clk 0:02:25.5]} 25. Qc2 {[%clk 0:00:08.4]}
25... h5 {[%clk 0:02:25]} 26. h4 {[%clk 0:00:07.3]} 26... Re8 {[%clk 0:02:25.6]}
27. Rb3 {[%clk 0:00:06.1]} 27... Qd5+ {[%clk 0:02:25.5]} 28. Kg1 {[%clk
0:00:05]} 28... Ra8 {[%clk 0:02:25.2]} 29. Qd3 {[%clk 0:00:01.9]} 29... Ra1+
{[%clk 0:02:24.7]} 30. Kh2 {[%clk 0:00:01.6]} 30... Qh1# {[%clk 0:02:24.8]} 0-1

[Event "Early-Titled-Tuesday-Blitz-May-07-2024"]
[Site "Chess.com"]
[Date "2024.05.07"]
[Round "1"]
[White "NikFil2013"]
[Black "TigranMukhutdinov"]
[Result "0-1"]
[WhiteElo "2394"]
[BlackElo "2695"]
[TimeControl "180+1"]
[EndTime "8:04:50 PDT"]
[Termination "TigranMukhutdinov won by resignation"]

1. d4 {[%clk 0:03:00.9]} 1... d6 {[%clk 0:02:55.3]} 2. Nf3 {[%clk 0:03:00.3]}
2... Bg4 {[%clk 0:02:54.8]} 3. e4 {[%clk 0:02:58.7]} 3... Nf6 {[%clk 0:02:54.2]}
4. Nc3 {[%clk 0:02:57.2]} 4... c6 {[%clk 0:02:54.7]} 5. Be2 {[%clk 0:02:55.7]}
5... e6 {[%clk 0:02:54.8]} 6. O-O {[%clk 0:02:53.8]} 6... Be7 {[%clk 0:02:55]}
7. Be3 {[%clk 0:02:52.8]} 7... O-O {[%clk 0:02:55]} 8. h3 {[%clk 0:02:51.9]}
8... Bh5 {[%clk 0:02:55.4]} 9. Re1 {[%clk 0:02:50]} 9... d5 {[%clk 0:02:55.2]}
10. e5 {[%clk 0:02:47.9]} 10... Nfd7 {[%clk 0:02:55.2]} 11. Qd3 {[%clk
0:02:40.8]} 11... c5 {[%clk 0:02:42.6]} 12. dxc5 {[%clk 0:02:40.1]} 12... Bxf3
{[%clk 0:02:37.4]} 13. Bxf3 {[%clk 0:02:39.1]} 13... Nxe5 {[%clk 0:02:37.9]} 14.
Qe2 {[%clk 0:02:36.9]} 14... Nxf3+ {[%clk 0:02:37.2]} 15. Qxf3 {[%clk
0:02:37.8]} 15... Nc6 {[%clk 0:02:37.1]} 16. Rad1 {[%clk 0:02:36.3]} 16... Qa5
{[%clk 0:02:35.9]} 17. a3 {[%clk 0:02:25.9]} 17... Ne5 {[%clk 0:02:26.1]} 18.
Qg3 {[%clk 0:02:10.8]} 18... Ng6 {[%clk 0:02:18]} 19. Qg4 {[%clk 0:01:52.2]}
19... Rfc8 {[%clk 0:02:10]} 20. Qb4 {[%clk 0:01:51.9]} 20... Qc7 {[%clk
0:02:07.9]} 21. Nb5 {[%clk 0:01:50.3]} 21... Qc6 {[%clk 0:02:07]} 22. Nd6 {[%clk
0:01:40.6]} 22... Bxd6 {[%clk 0:02:04]} 23. cxd6 {[%clk 0:01:41.5]} 23... Rd8
{[%clk 0:02:00.5]} 24. a4 {[%clk 0:00:54]} 24... Qxd6 {[%clk 0:01:57.6]} 25.
Qxb7 {[%clk 0:00:51.6]} 25... Rdb8 {[%clk 0:01:54.7]} 0-1

[Event "Early-Titled-Tuesday-Blitz-May-07-2024"]
[Site "Chess.com"]
[Date "2024.05.07"]
[Round "1"]
[White "Genghis_K"]
[Black "balack95"]
[Result "1-0"]
[WhiteElo "2907"]
[BlackElo "2503"]
[TimeControl "180+1"]
[EndTime "8:04:57 PDT"]
[Termination "Genghis_K won by checkmate"]

1. e4 {[%clk 0:02:51.8]} 1... c5 {[%clk 0:02:59.7]} 2. Nf3 {[%clk 0:02:51.6]}
2... e6 {[%clk 0:02:59.6]} 3. d4 {[%clk 0:02:51.7]} 3... cxd4 {[%clk 0:02:59.7]}
4. Nxd4 {[%clk 0:02:52.1]} 4... Nc6 {[%clk 0:03:00.3]} 5. Nc3 {[%clk 0:02:52]}
5... Qc7 {[%clk 0:02:58.5]} 6. Be3 {[%clk 0:02:51.9]} 6... a6 {[%clk 0:02:58.8]}
7. Qd2 {[%clk 0:02:50.6]} 7... Nf6 {[%clk 0:02:58.3]} 8. f4 {[%clk 0:02:50.8]}
8... Nxd4 {[%clk 0:02:53.5]} 9. Bxd4 {[%clk 0:02:48.9]} 9... b5 {[%clk
0:02:48.2]} 10. e5 {[%clk 0:02:45.6]} 10... b4 {[%clk 0:02:41.2]} 11. exf6
{[%clk 0:02:37.9]} 11... bxc3 {[%clk 0:02:41.3]} 12. Bxc3 {[%clk 0:02:31.2]}
12... gxf6 {[%clk 0:02:33.9]} 13. Bxf6 {[%clk 0:02:31.3]} 13... Rg8 {[%clk
0:02:33.3]} 14. O-O-O {[%clk 0:02:30.4]} 14... Bb7 {[%clk 0:02:30.6]} 15. Be5
{[%clk 0:02:22.1]} 15... Qc6 {[%clk 0:02:19.8]} 16. g3 {[%clk 0:02:12.2]} 16...
d6 {[%clk 0:02:19.6]} 17. Bf6 {[%clk 0:01:51.1]} 17... Qxh1 {[%clk 0:02:13.6]}
18. Bb5+ {[%clk 0:01:49.6]} 18... axb5 {[%clk 0:02:13.7]} 19. Rxh1 {[%clk
0:01:47.9]} 19... Bxh1 {[%clk 0:02:13.9]} 20. Qd3 {[%clk 0:01:35.3]} 20... Bc6
{[%clk 0:02:02.5]} 21. Qxh7 {[%clk 0:01:24]} 21... Rg6 {[%clk 0:02:02.5]} 22.
Qh8 {[%clk 0:01:18.7]} 22... Rxa2 {[%clk 0:02:00]} 23. Kb1 {[%clk 0:01:18.5]}
23... Ra4 {[%clk 0:01:56.2]} 24. Bg5 {[%clk 0:01:17.2]} 24... Be4 {[%clk
0:01:33.9]} 25. b3 {[%clk 0:01:11.4]} 25... Rd4 {[%clk 0:01:30.2]} 26. Qxd4
{[%clk 0:01:10.2]} 26... d5 {[%clk 0:01:22.2]} 27. Qb6 {[%clk 0:01:05.8]} 27...
Ba3 {[%clk 0:01:10]} 28. Qd8# {[%clk 0:01:05.1]} 1-0

[Event "Early-Titled-Tuesday-Blitz-May-07-2024"]
[Site "Chess.com"]
[Date "2024.05.07"]
[Round "1"]
[White "MVM2008"]
[Black "dianamirza"]
[Result "1-0"]
[WhiteElo "2549"]
[BlackElo "1909"]
[TimeControl "180+1"]
[EndTime "8:04:59 PDT"]
[Termination "MVM2008 won by resignation"]

1. e4 {[%clk 0:03:00.9]} 1... d5 {[%clk 0:02:46.2]} 2. exd5 {[%clk 0:03:00.1]}
2... Qxd5 {[%clk 0:02:47.1]} 3. Nc3 {[%clk 0:03:00.1]} 3... Qd8 {[%clk 0:02:48]}
4. Nf3 {[%clk 0:02:59.4]} 4... Nf6 {[%clk 0:02:48.9]} 5. d4 {[%clk 0:02:59.4]}
5... Bg4 {[%clk 0:02:49]} 6. Bc4 {[%clk 0:02:58.4]} 6... e6 {[%clk 0:02:49.6]}
7. Bf4 {[%clk 0:02:57.8]} 7... Be7 {[%clk 0:02:46.8]} 8. Qd2 {[%clk 0:02:56]}
8... a6 {[%clk 0:02:46.9]} 9. Ne5 {[%clk 0:02:55.8]} 9... Bh5 {[%clk 0:02:37.7]}
10. f3 {[%clk 0:02:48.8]} 10... b5 {[%clk 0:02:35.1]} 11. Bb3 {[%clk 0:02:42.2]}
11... Nbd7 {[%clk 0:02:35.1]} 12. Nc6 {[%clk 0:02:39.7]} 12... Qc8 {[%clk
0:02:31.6]} 13. Nxe7 {[%clk 0:02:39.9]} 13... Kxe7 {[%clk 0:02:32.5]} 14. O-O-O
{[%clk 0:02:23.7]} 14... Rd8 {[%clk 0:02:28.7]} 15. g4 {[%clk 0:02:20.7]} 15...
Bg6 {[%clk 0:02:28.7]} 16. h4 {[%clk 0:02:21.3]} 16... h5 {[%clk 0:02:28.7]} 17.
g5 {[%clk 0:02:18.7]} 17... Ne8 {[%clk 0:02:13.7]} 18. d5 {[%clk 0:02:16.9]}
18... Nc5 {[%clk 0:02:08.5]} 19. Qe3 {[%clk 0:01:43.3]} 19... Nxb3+ {[%clk
0:02:06.2]} 20. axb3 {[%clk 0:01:43.2]} 20... Kf8 {[%clk 0:02:03.9]} 21. Rhe1
{[%clk 0:01:19.7]} 21... Bf5 {[%clk 0:01:26.2]} 22. g6 {[%clk 0:01:08.7]} 22...
Bxg6 {[%clk 0:01:13.1]} 23. dxe6 {[%clk 0:01:07.6]} 23... Rxd1+ {[%clk
0:01:13.7]} 24. Nxd1 {[%clk 0:01:04.4]} 24... Qxe6 {[%clk 0:01:11.7]} 25. Qc5+
{[%clk 0:01:04.1]} 25... Nd6 {[%clk 0:01:05]} 26. Rxe6 {[%clk 0:01:02.9]} 26...
fxe6 {[%clk 0:01:05.9]} 1-0

[Event "Early-Titled-Tuesday-Blitz-May-07-2024"]
[Site "Chess.com"]
[Date "2024.05.07"]
[Round "1"]
[White "KuzubovYuriy"]
[Black "kacperkarwowski"]
[Result "1-0"]
[WhiteElo "2961"]
[BlackElo "2525"]
[TimeControl "180+1"]
[EndTime "8:05:02 PDT"]
[Termination "KuzubovYuriy won by resignation"]

1. d4 {[%clk 0:03:00.9]} 1... Nf6 {[%clk 0:02:42]} 2. c4 {[%clk 0:03:00.3]} 2...
e6 {[%clk 0:02:41.5]} 3. Nf3 {[%clk 0:03:00.6]} 3... d5 {[%clk 0:02:42]} 4. Nc3
{[%clk 0:03:00.5]} 4... a6 {[%clk 0:02:41.9]} 5. cxd5 {[%clk 0:02:58.9]} 5...
exd5 {[%clk 0:02:42.8]} 6. Bg5 {[%clk 0:02:59.1]} 6... Be6 {[%clk 0:02:40.5]} 7.
Bxf6 {[%clk 0:02:59.1]} 7... Qxf6 {[%clk 0:02:33.1]} 8. Qb3 {[%clk 0:02:59.7]}
8... b5 {[%clk 0:02:33.1]} 9. a4 {[%clk 0:02:57.8]} 9... b4 {[%clk 0:02:28.5]}
10. Nxd5 {[%clk 0:02:56.5]} 10... Qd8 {[%clk 0:02:28.4]} 11. e4 {[%clk
0:02:56.4]} 11... c6 {[%clk 0:02:26.9]} 12. Qe3 {[%clk 0:02:45.2]} 12... cxd5
{[%clk 0:02:26]} 13. exd5 {[%clk 0:02:46.1]} 13... Qxd5 {[%clk 0:02:26.2]} 14.
Bd3 {[%clk 0:02:39.9]} 14... Be7 {[%clk 0:02:21.9]} 15. Be4 {[%clk 0:02:35.8]}
15... Qh5 {[%clk 0:01:54.2]} 16. Bxa8 {[%clk 0:02:34.9]} 16... O-O {[%clk
0:01:55.1]} 17. d5 {[%clk 0:02:13.3]} 17... Bd7 {[%clk 0:01:36.2]} 18. O-O
{[%clk 0:02:06.4]} 18... Bf6 {[%clk 0:01:35.8]} 19. Qd2 {[%clk 0:01:38.5]} 19...
Bg4 {[%clk 0:01:33.9]} 20. d6 {[%clk 0:01:37.7]} 20... Nd7 {[%clk 0:01:32.1]}
21. Bc6 {[%clk 0:01:36.6]} 21... Nc5 {[%clk 0:01:32.4]} 22. Qxb4 {[%clk
0:01:31.8]} 22... Nd3 {[%clk 0:01:23.6]} 23. Qd2 {[%clk 0:01:27.2]} 23... Ne5
{[%clk 0:01:21.9]} 24. Nxe5 {[%clk 0:01:24.8]} 24... Bxe5 {[%clk 0:01:22.5]} 25.
g3 {[%clk 0:01:24.8]} 25... Qg6 {[%clk 0:01:05.6]} 26. d7 {[%clk 0:01:18.5]}
26... Bc7 {[%clk 0:00:57.6]} 27. Rac1 {[%clk 0:01:17.2]} 1-0

[Event "Early-Titled-Tuesday-Blitz-May-07-2024"]
[Site "Chess.com"]
[Date "2024.05.07"]
[Round "1"]
[White "Me_ch_an"]
[Black "IamSchrodingersCat"]
[Result "0-1"]
[WhiteElo "2352"]
[BlackElo "2650"]
[TimeControl "180+1"]
[EndTime "8:05:03 PDT"]
[Termination "IamSchrodingersCat won by resignation"]

1. e4 {[%clk 0:02:43.2]} 1... c5 {[%clk 0:02:59.7]} 2. Nc3 {[%clk 0:02:42.1]}
2... a6 {[%clk 0:02:59.5]} 3. Nf3 {[%clk 0:02:39.9]} 3... b5 {[%clk 0:02:59.2]}
4. d4 {[%clk 0:02:39.5]} 4... cxd4 {[%clk 0:03:00.1]} 5. Nxd4 {[%clk 0:02:39.2]}
5... Bb7 {[%clk 0:03:00.5]} 6. Bd3 {[%clk 0:02:31.4]} 6... e6 {[%clk 0:02:50.6]}
7. O-O {[%clk 0:02:29.1]} 7... d6 {[%clk 0:02:45.4]} 8. Be3 {[%clk 0:02:27.7]}
8... Nf6 {[%clk 0:02:45.1]} 9. a3 {[%clk 0:02:15.3]} 9... Be7 {[%clk 0:02:42.1]}
10. f4 {[%clk 0:02:14.4]} 10... Nbd7 {[%clk 0:02:38.3]} 11. g4 {[%clk
0:02:07.5]} 11... d5 {[%clk 0:02:28.4]} 12. e5 {[%clk 0:01:54.5]} 12... Ne4
{[%clk 0:02:28.1]} 13. Bxe4 {[%clk 0:01:47.3]} 13... dxe4 {[%clk 0:02:29]} 14.
Qe2 {[%clk 0:01:42.3]} 14... O-O {[%clk 0:02:23.1]} 15. Rad1 {[%clk 0:01:41]}
15... Qc7 {[%clk 0:02:02.6]} 16. Rd2 {[%clk 0:00:54.9]} 16... Nb6 {[%clk
0:01:52.9]} 17. Ncxb5 {[%clk 0:00:41]} 17... axb5 {[%clk 0:01:47.4]} 18. Nxb5
{[%clk 0:00:40.9]} 18... Qc6 {[%clk 0:01:44.4]} 19. Nd6 {[%clk 0:00:39.1]} 19...
Ba6 {[%clk 0:01:40.8]} 20. Qg2 {[%clk 0:00:32.9]} 20... Bxf1 {[%clk 0:01:38.3]}
21. Qxf1 {[%clk 0:00:29.4]} 21... Nd5 {[%clk 0:01:36.8]} 0-1